bitfinex/quotes_SOLUSD_20250118
["timestamp","ask_amount","ask_price","bid_price","bid_amount"]
[1737243510658,29.82192949,263.46,263.28,29.82192949]
[1737243511181,29.82192949,263.44,263.28,29.82192949]
[1737243511379,29.82192949,263.4,263.28,29.82192949]
[1737243511560,13.2861,263.43,263.28,29.82192949]
[1737243511561,3.796,263.43,263.28,29.82192949]
[1737243512785,29.82192949,263.42,263.28,29.82192949]
[1737243513362,29.82192949,263.4,263.28,29.82192949]
[1737243513551,29.82192949,263.38,263.28,29.82192949]
[1737243513749,5.0,263.42,263.26,29.82192949]
[1737243513750,29.82192949,263.36,263.26,29.82192949]
[1737243514570,29.82192949,263.38,263.28,29.82192949]
[1737243514977,9.4901,263.43,263.24,29.82192949]
[1737243514978,29.82192949,263.36,263.24,29.82192949]
[1737243515179,29.82192949,263.33,263.24,29.82192949]
[1737243515482,3.7982,263.28,263.12,0.56989233]
[1737243515662,29.82192949,263.27,263.15,29.82192949]
[1737243516480,29.82192949,263.27,263.17,29.82192949]
[1737243516976,29.82192949,263.23,263.13,29.82192949]
[1737243517458,29.82192949,263.25,263.15,29.82192949]
[1737243518380,29.82192949,263.21,263.11,29.82192949]
[1737243518682,29.82192949,263.23,263.13,29.82192949]
[1737243518854,29.82192949,263.21,263.11,29.82192949]
[1737243519060,13.2942,263.27,263.13,29.82192949]
[1737243519259,0.03,263.29,263.21,29.82192949]
[1737243519571,29.82192949,263.27,263.16,29.82192949]
[1737243519902,20.0,263.27,263.12,29.82192949]
[1737243520089,29.82192949,263.28,263.16,29.82192949]
[1737243520380,29.82192949,263.28,263.18,29.82192949]
[1737243521071,3.7983,263.27,263.18,29.82192949]
[1737243521465,29.82192949,263.26,263.16,29.82192949]
[1737243522181,29.82192949,263.22,263.12,29.82192949]
[1737243522366,13.2942,263.27,263.1,29.82192949]
[1737243522367,29.82192949,263.2,263.1,29.82192949]
[1737243522676,29.82192949,263.13,263.03,29.82192949]
[1737243522979,29.82192949,263.07,262.97,29.82192949]
[1737243523172,29.82192949,263.01,262.93,29.82192949]
[1737243523962,24.7323,263.11,262.93,29.82192949]
[1737243523963,29.82192949,263.03,262.93,29.82192949]
[1737243524167,29.82192949,263.03,263.0,50.0]
[1737243524376,29.82192949,263.01,263.0,50.0]
[1737243524659,32.3057,263.11,263.0,50.0]
[1737243524865,20.0,263.08,263.0,50.0]
[1737243525083,29.82192949,263.02,263.0,50.0]
[1737243525280,3.8021,263.01,263.0,50.0]
[1737243525579,3.8012,263.07,263.0,50.0]
[1737243525883,29.82192949,263.04,263.0,50.0]
[1737243526057,29.82192949,263.02,263.0,50.0]
[1737243526261,3.7999,263.16,263.0,79.82192949]
[1737243526476,5.0,263.37,263.14,29.82192949]
[1737243526657,29.82192949,263.26,263.16,29.82192949]
[1737243526862,29.82192949,263.24,263.14,29.82192949]
[1737243527261,3.7989,263.23,263.14,29.82192949]
[1737243527985,29.82192949,263.19,263.09,29.82192949]
[1737243528581,29.82192949,263.19,263.07,29.82192949]
[1737243528965,13.2962,263.23,263.05,29.82192949]
[1737243528966,29.82192949,263.15,263.05,29.82192949]
[1737243529376,32.2909,263.23,263.0,50.0]
[1737243529377,3.8005,263.12,263.0,50.0]
[1737243529686,3.8005,263.12,263.04,29.82192949]
[1737243529888,3.8005,263.12,263.06,29.82192949]
[1737243530563,29.82192949,263.2,263.1,29.82192949]
[1737243530762,43.11892949,263.22,263.12,29.82192949]
[1737243530983,29.82192949,263.2,263.1,29.82192949]
[1737243531287,13.297,263.22,263.08,29.82192949]
[1737243531288,29.82192949,263.18,263.08,29.82192949]
[1737243531585,29.82192949,263.16,263.05,29.82192949]
[1737243531888,29.82192949,263.11,263.01,29.82192949]
[1737243532079,29.82192949,263.13,263.03,29.82192949]
[1737243532465,43.7235,263.21,263.0,50.0]
[1737243532466,29.82192949,263.1,263.0,50.0]
[1737243532667,29.82192949,263.08,263.0,50.0]
[1737243533285,29.82192949,263.06,263.0,50.0]
[1737243533482,29.82192949,263.08,263.0,50.0]
[1737243533684,3.8008,263.11,263.02,29.82192949]
[1737243533988,3.8008,263.11,263.0,79.82192949]
[1737243534868,3.8008,263.11,263.02,29.82192949]
[1737243535072,29.82192949,263.1,263.0,79.82192949]
[1737243535687,3.8008,263.11,263.02,29.82192949]
[1737243535986,3.8008,263.11,263.04,29.82192949]
[1737243536491,29.82192949,263.26,263.1,29.82192949]
[1737243536673,29.82192949,263.26,263.17,29.82192949]
[1737243537072,33.62012949,263.28,263.17,29.82192949]
[1737243538092,29.82192949,263.24,263.15,29.82192949]
[1737243538986,29.82192949,263.24,263.13,29.82192949]
[1737243539169,29.82192949,263.2,263.11,29.82192949]
[1737243539865,29.82192949,263.18,263.09,29.82192949]
[1737243540069,3.7998,263.17,263.09,29.82192949]
[1737243540269,3.7998,263.17,263.04,3.8016]
[1737243540270,3.7992,263.21,263.11,29.82192949]
[1737243540483,29.82192949,263.23,263.12,29.82192949]
[1737243540686,29.82192949,263.14,263.04,29.82192949]
[1737243540888,29.82192949,263.1,263.01,0.063]
[1737243541492,29.82192949,263.08,263.01,0.063]
[1737243541695,29.82192949,263.18,263.07,29.82192949]
[1737243542175,3.7998,263.17,263.09,29.82192949]
[1737243543092,3.7998,263.17,263.01,0.063]
[1737243543093,29.82192949,263.14,263.03,29.82192949]
[1737243543290,29.82192949,263.12,263.01,29.88492949]
[1737243543599,29.82192949,263.03,263.01,0.063]
[1737243543798,29.82192949,263.03,263.01,0.0001]
[1737243543978,20.0,263.01,262.8,45.03341849]
[1737243544291,11.0579,263.11,262.75,14.00218753]
[1737243544292,3.7993,263.2,262.94,3.8031]
[1737243544496,9.5,263.16,262.94,3.8031]
[1737243544790,13.2977,263.2,263.03,29.82192949]
[1737243544988,29.82192949,263.15,263.05,29.82192949]
[1737243546076,29.82192949,263.13,263.03,29.82192949]
[1737243546886,33.62212949,263.15,263.03,29.82192949]
[1737243547202,29.82192949,263.13,263.03,29.82192949]
[1737243547380,33.62232949,263.13,263.01,29.82192949]
[1737243547783,29.82192949,263.11,263.01,29.82192949]
[1737243548088,33.62232949,263.13,263.01,29.82192949]
[1737243548395,29.82192949,263.11,263.01,29.82192949]
[1737243548791,3.8008,263.1,263.01,29.82192949]
[1737243549086,29.82192949,263.11,262.93,9.5711]
[1737243549087,29.82192949,263.16,263.04,29.82192949]
[1737243549298,29.82192949,263.18,263.07,29.82192949]
[1737243550200,13.2973,263.21,263.0,0.57024921]
[1737243550201,20.0,263.13,263.0,0.57024921]
[1737243550395,29.82192949,263.01,262.91,19.008307]
[1737243550594,29.82192949,263.03,262.92,3.8033]
[1737243550794,3.8019,263.02,262.92,33.62522949]
[1737243551197,29.82192949,263.08,262.97,29.82192949]
[1737243551376,29.82192949,263.23,263.07,29.82192949]
[1737243551697,29.82192949,263.23,263.13,29.82192949]
[1737243551887,29.82192949,263.23,263.11,29.82192949]
[1737243552283,29.82192949,263.19,263.07,29.82192949]
[1737243553095,84.14075325,263.68,262.99,29.82192949]
[1737243553096,29.82192949,263.28,263.17,29.82192949]
[1737243553299,29.82192949,263.33,263.22,29.82192949]
[1737243553603,33.65012949,263.29,263.18,29.82192949]
[1737243554103,29.82192949,263.25,263.09,0.5698193]
[1737243554286,29.82192949,263.25,263.15,29.82192949]
[1737243554982,1.0,263.23,263.16,3.7999]
[1737243555182,1.0,263.23,263.21,29.82192949]
[1737243555898,1.0,263.23,263.19,29.82192949]
[1737243556103,1.0,263.23,263.17,29.82192949]
[1737243556499,1.0,263.23,263.21,29.82192949]
[1737243557292,1.0,263.23,263.21,33.62102949]
[1737243557488,1.0,263.23,263.22,0.56986078]
[1737243557686,1.0,263.23,263.19,29.82192949]
[1737243557895,44.88608994,263.67,263.22,59.64385898]
[1737243558090,34.66128994,263.67,263.51,29.82192949]
[1737243558601,5.77688165,263.65,263.52,0.56922028]
[1737243558811,5.77688165,263.65,263.45,0.56909598]
[1737243559007,5.77688165,263.65,263.53,33.61652949]
[1737243559212,5.77688165,263.65,263.51,0.5690856]
[1737243559501,9.56978165,263.65,263.52,29.82192949]
[1737243559804,5.77688165,263.65,263.53,0.56919766]
[1737243560001,9.56978165,263.65,263.52,29.82192949]
[1737243560307,3.7929,263.65,263.52,29.82192949]
[1737243560486,3.7929,263.65,263.55,29.82192949]
[1737243560805,29.82192949,263.62,263.51,11.55376331]
[1737243561104,29.82192949,263.58,263.51,5.87969562]
[1737243561407,29.82192949,263.58,263.48,5.87969562]
[1737243561808,4.88,263.74,263.48,5.87969562]
[1737243561809,29.82192949,263.61,263.49,29.82192949]
[1737243561996,29.82192949,263.57,263.46,5.87969562]
[1737243562199,20.0,263.61,263.46,5.87969562]
[1737243562502,29.82192949,263.5,263.46,5.87969562]
[1737243562692,29.82192949,263.48,263.46,5.87969562]
[1737243563104,20.0,263.61,263.42,29.82192949]
[1737243563105,9.4853,263.57,263.42,29.82192949]
[1737243563307,29.82192949,263.54,263.42,29.82192949]
[1737243563507,9.4853,263.57,263.37,9.67659562]
[1737243563508,29.82192949,263.48,263.37,5.87969562]
[1737243563704,29.82192949,263.48,263.38,29.82192949]
[1737243564001,29.82192949,263.46,263.37,5.87969562]
[1737243564301,29.82192949,263.46,263.34,35.70162511]
[1737243564489,32.2507,263.56,263.34,35.70162511]
[1737243564490,29.82192949,263.44,263.34,5.87969562]
[1737243564685,29.82192949,263.4,263.34,5.87969562]
[1737243564885,29.82192949,263.4,263.32,5.87969562]
[1737243565082,3.7966,263.39,263.32,5.87969562]
[1737243565304,29.82192949,263.38,263.32,5.87969562]
[1737243565802,29.82192949,263.36,263.25,35.70162511]
[1737243565997,3.7957,263.45,263.26,0.56979034]
[1737243566186,3.7957,263.45,263.34,29.82192949]
[1737243566392,33.61762949,263.45,263.34,29.82192949]
[1737243566587,33.61762949,263.45,263.26,0.56979034]
[1737243566588,29.82192949,263.35,263.26,0.56979034]
[1737243566795,29.82192949,263.32,263.23,5.87969562]
[1737243566994,29.82192949,263.38,263.23,5.87969562]
[1737243566995,29.82192949,263.3,263.23,5.87969562]
[1737243567208,29.82192949,263.26,263.24,5.87969562]
[1737243567891,29.82192949,263.26,263.2,0.063]
[1737243568290,29.82192949,263.21,263.2,0.063]
[1737243568893,29.82192949,263.23,263.2,0.063]
[1737243569093,29.82192949,263.25,263.2,0.063]
[1737243569294,29.82192949,263.23,263.2,0.063]
[1737243570190,29.82192949,263.31,263.2,33.68412949]
[1737243570531,29.82192949,263.37,263.26,29.82192949]
[1737243571209,29.82192949,263.42,263.32,29.82192949]
[1737243571402,29.82192949,263.4,263.3,29.82192949]
[1737243571609,29.82192949,263.42,263.32,29.82192949]
[1737243572317,29.82192949,263.55,263.41,29.82192949]
[1737243572514,3.7933,263.62,263.45,29.82192949]
[1737243572515,29.82192949,263.57,263.45,29.82192949]
[1737243573013,29.82192949,263.55,263.45,29.82192949]
[1737243573311,33.61622949,263.55,263.45,29.82192949]
[1737243574111,0.03,263.55,263.54,29.82192949]
[1737243574816,0.03,263.55,263.52,29.82192949]
[1737243575110,0.03,263.55,263.48,29.82192949]
[1737243575314,29.82192949,263.53,263.44,30.39121491]
[1737243575509,29.82192949,263.53,263.42,29.82192949]
[1737243575697,29.82192949,263.51,263.42,29.82192949]
[1737243575901,0.03,263.55,263.48,29.82192949]
[1737243576093,0.03,263.55,263.43,0.56939513]
[1737243576094,0.03,263.55,263.5,29.82192949]
[1737243576518,0.03,263.55,263.48,29.82192949]
[1737243577108,0.03,263.55,263.46,29.82192949]
[1737243578600,29.82192949,263.51,263.4,29.82192949]
[1737243578807,29.82192949,263.51,263.4,35.70162511]
[1737243579109,29.82192949,263.49,263.4,5.87969562]
[1737243579519,29.82192949,263.47,263.4,5.87969562]
[1737243579820,29.82192949,263.45,263.34,29.82192949]
[1737243580008,29.82192949,263.43,263.34,29.82192949]
[1737243580192,29.82192949,263.43,263.33,6.44923921]
[1737243580398,29.82192949,263.35,263.31,5.87969562]
[1737243580709,29.82192949,263.32,263.31,5.87969562]
[1737243581511,29.82192949,263.32,263.23,0.56974836]
[1737243581707,33.61962949,263.32,263.22,29.82192949]
[1737243581906,29.82192949,263.28,263.2,0.063]
[1737243582107,29.82192949,263.24,263.2,0.063]
[1737243582298,29.82192949,263.22,263.2,0.063]
[1737243583702,3.7992,263.21,263.2,0.063]
[1737243584223,29.82192949,263.26,263.2,0.063]
[1737243584408,29.82192949,263.28,263.2,0.063]
[1737243584809,29.82192949,263.26,263.2,0.063]
[1737243585624,29.82192949,263.3,263.2,29.88492949]
[1737243585802,3.7973,263.34,263.24,29.82192949]
[1737243586118,10.6839,263.47,263.28,29.82192949]
[1737243586119,29.82192949,263.39,263.28,29.82192949]
[1737243587228,3.797,263.36,263.26,29.82192949]
[1737243587518,3.797,263.36,263.28,29.82192949]
[1737243587699,29.82192949,263.52,263.35,29.82192949]
[1737243587902,29.82192949,263.54,263.44,29.82192949]
[1737243588113,29.82192949,263.52,263.42,29.82192949]
[1737243588319,29.82192949,263.46,263.36,29.82192949]
[1737243589005,29.82192949,263.44,263.34,29.82192949]
[1737243589209,29.82192949,263.51,263.26,0.56940495]
[1737243589210,29.82192949,263.39,263.29,29.82192949]
[1737243589416,29.82192949,263.37,263.27,29.82192949]
[1737243589814,29.82192949,263.35,263.25,29.82192949]
[1737243590122,29.82192949,263.38,263.28,29.82192949]
[1737243590518,3.7965,263.4,263.28,29.82192949]
[1737243590714,3.7965,263.4,263.2,4.43190671]
[1737243590715,29.82192949,263.45,263.34,29.82192949]
[1737243590911,190.84692982,263.79,263.38,29.82192949]
[1737243590912,29.82192949,263.47,263.38,29.82192949]
[1737243591120,29.82192949,263.45,263.35,29.82192949]
[1737243591515,29.82192949,263.41,263.31,29.82192949]
[1737243592426,29.82192949,263.47,263.37,29.82192949]
[1737243593430,27.572484,263.46,263.37,29.82192949]
[1737243593725,29.82192949,263.56,263.45,29.82192949]
[1737243594120,3.7942,263.56,263.49,29.82192949]
[1737243594326,29.82192949,263.52,263.41,29.82192949]
[1737243594911,23.776884,263.51,263.41,29.82192949]
[1737243595227,23.776884,263.51,263.35,20.0]
[1737243595228,29.82192949,263.45,263.35,29.82192949]
[1737243595430,29.82192949,263.47,263.37,29.82192949]
[1737243595728,33.61752949,263.47,263.37,29.82192949]
[1737243595928,3.7956,263.47,263.39,29.82192949]
[1737243598033,23.776884,263.43,263.34,29.82192949]
[1737243598617,29.82192949,263.44,263.34,29.82192949]
[1737243598823,3.7956,263.47,263.32,3.7976]
[1737243598824,3.7956,263.47,263.4,29.82192949]
[1737243599036,23.776884,263.46,263.38,29.82192949]
[1737243599411,29.82192949,263.46,263.32,4.36713804]
[1737243599623,29.82192949,263.48,263.37,29.82192949]
[1737243599917,0.03,263.51,263.43,29.82192949]
[1737243600225,0.03,263.51,263.49,29.82192949]
[1737243601827,29.82192949,263.68,263.53,20.0]
[1737243602033,29.82192949,263.68,263.57,29.82192949]
[1737243602224,29.82192949,263.61,263.51,29.82192949]
[1737243602535,29.82192949,263.63,263.53,29.82192949]
[1737243603140,29.82192949,263.65,263.55,29.82192949]
[1737243603512,29.82192949,263.67,263.57,29.82192949]
[1737243603932,23.776884,263.62,263.46,0.56911819]
[1737243604229,33.61422949,263.69,263.59,29.82192949]
[1737243604434,48.33240275,263.9,263.51,29.82192949]
[1737243604435,29.82192949,263.73,263.62,29.82192949]
[1737243604640,29.82192949,263.66,263.55,29.82192949]
[1737243604840,23.776884,263.63,263.42,0.56913643]
[1737243605141,23.776884,263.56,263.47,29.82192949]
[1737243605433,23.776884,263.53,263.43,29.82192949]
[1737243605737,23.776884,263.49,263.39,29.82192949]
[1737243605939,33.61502949,263.63,263.47,29.82192949]
[1737243606236,29.82192949,263.71,263.61,29.82192949]
[1737243606443,13.2706,263.74,263.54,29.82192949]
[1737243606741,3.7916,263.74,263.56,29.82192949]
[1737243606916,29.82192949,263.64,263.54,29.82192949]
[1737243607236,23.776884,263.59,263.5,29.82192949]
[1737243607433,29.82192949,263.6,263.5,29.82192949]
[1737243607620,29.82192949,263.6,263.46,0.56912219]
[1737243607621,23.776884,263.57,263.48,29.82192949]
[1737243607840,29.82192949,263.58,263.48,29.82192949]
[1737243608024,29.82192949,263.62,263.52,29.82192949]
[1737243608832,23.776884,263.61,263.52,29.82192949]
[1737243609142,29.82192949,263.73,263.59,29.82192949]
[1737243609328,29.82192949,263.73,263.63,29.82192949]
[1737243609531,29.82192949,263.71,263.61,29.82192949]
[1737243609727,33.61402949,263.71,263.61,29.82192949]
[1737243610027,3.7921,263.71,263.63,29.82192949]
[1737243610216,29.82192949,263.66,263.56,29.82192949]
[1737243610416,29.82192949,263.68,263.58,29.82192949]
[1737243610636,29.82192949,263.7,263.6,29.82192949]
[1737243611313,23.776884,263.67,263.58,29.82192949]
[1737243611528,3.7926,263.67,263.58,29.82192949]
[1737243611722,27.569484,263.67,263.6,29.82192949]
[1737243612738,23.776884,263.66,263.6,29.82192949]
[1737243612944,3.7926,263.67,263.6,29.82192949]
[1737243613126,27.569184,263.69,263.62,29.82192949]
[1737243613521,27.569184,263.69,263.6,29.82192949]
[1737243613916,29.82192949,263.7,263.6,29.82192949]
[1737243614152,1.0,263.71,263.62,29.82192949]
[1737243614325,4.7921,263.71,263.62,29.82192949]
[1737243614527,29.82192949,263.7,263.6,29.82192949]
[1737243615138,1.0,263.71,263.62,29.82192949]
[1737243615544,1.0,263.71,263.64,29.82192949]
[1737243617138,1.0,263.71,263.69,29.82192949]
[1737243617338,9.4747,263.86,263.72,20.0]
[1737243617339,29.82192949,263.86,263.72,20.0]
[1737243617532,11.1399,263.98,263.69,29.82192949]
[1737243617533,29.82192949,263.78,263.69,29.82192949]
[1737243617735,29.82192949,263.76,263.66,29.82192949]
[1737243617924,29.82192949,263.78,263.68,29.82192949]
[1737243618125,29.82192949,263.8,263.7,29.82192949]
[1737243619544,40.98,263.91,263.74,29.82192949]
[1737243619851,29.82192949,263.84,263.74,29.82192949]
[1737243620224,29.82192949,263.86,263.77,29.82192949]
[1737243620832,29.73457998,263.86,263.77,29.82192949]
[1737243621041,29.82192949,263.83,263.75,29.82192949]
[1737243621240,43.08442949,263.9,263.75,29.82192949]
[1737243621241,3.7902,263.84,263.75,29.82192949]
[1737243622154,29.82192949,263.85,263.75,27.32192949]
[1737243622155,33.61202949,263.85,263.75,27.32192949]
[1737243622347,29.82192949,263.89,263.79,29.82192949]
[1737243622531,29.82192949,263.87,263.77,29.82192949]
[1737243623234,3.7898,263.86,263.77,29.82192949]
[1737243623552,29.82192949,263.89,263.79,29.82192949]
[1737243624054,3.7893,263.9,263.83,29.82192949]
[1737243624647,3.7893,263.9,263.81,29.82192949]
[1737243624828,3.44882119,263.9,263.79,29.82192949]
[1737243625036,0.03,263.98,263.84,29.82192949]
[1737243625352,0.03,263.98,263.97,29.82192949]
[1737243625542,0.03,263.98,263.97,30.39011535]
[1737243625929,0.03,263.98,263.97,29.82192949]
[1737243626727,0.03,263.98,263.97,30.39013032]
[1737243626931,0.03,263.98,263.97,29.82192949]
[1737243627227,0.06765232,264.13,263.98,11.6968]
[1737243627425,0.06765232,264.13,263.99,0.5679136]
[1737243627630,0.06765232,264.13,263.99,59.64385898]
[1737243627929,89.27005897,264.53,264.15,20.0]
[1737243628135,29.82192949,264.47,264.35,29.82192949]
[1737243628333,3.7804,264.52,264.44,29.82192949]
[1737243628549,3.7804,264.52,264.36,0.56743624]
[1737243628550,20.0,264.48,264.38,29.82192949]
[1737243628859,3.2804,264.52,264.42,29.82192949]
[1737243629042,3.2804,264.52,264.4,29.82192949]
[1737243629240,29.82192949,264.48,264.3,0.56720591]
[1737243629438,3.7811,264.47,264.29,3.7836]
[1737243629633,29.82192949,264.46,264.34,29.82192949]
[1737243629844,29.82192949,264.44,264.32,29.82192949]
[1737243630240,29.82192949,264.42,264.32,29.82192949]
[1737243630440,29.82192949,264.42,264.3,29.82192949]
[1737243630641,29.82192949,264.42,264.31,0.56744392]
[1737243630836,29.82192949,264.38,264.26,29.82192949]
[1737243631056,29.82192949,264.36,264.24,29.82192949]
[1737243631260,29.82192949,264.38,264.26,29.82192949]
[1737243631466,29.82192949,264.38,264.2,3.785]
[1737243631467,29.82192949,264.34,264.23,29.82192949]
[1737243631761,33.60442949,264.38,264.27,29.82192949]
[1737243632260,33.60442949,264.38,264.28,0.56750432]
[1737243632471,29.82192949,264.38,264.28,0.56750432]
[1737243632649,4.76,264.51,264.25,29.82192949]
[1737243632848,3.7804,264.52,264.32,29.82192949]
[1737243633053,29.82192949,264.41,264.3,29.82192949]
[1737243633254,20.0,264.5,264.31,0.56741905]
[1737243633449,29.82192949,264.44,264.32,29.82192949]
[1737243633636,29.82192949,264.44,264.33,0.56729955]
[1737243633841,29.82192949,264.38,264.28,29.82192949]
[1737243634049,29.82192949,264.38,264.29,0.56746235]
[1737243634361,29.85192949,264.38,264.29,0.56746235]
[1737243634667,29.85192949,264.38,264.16,29.82192949]
[1737243634668,29.82192949,264.34,264.24,29.82192949]
[1737243634841,29.82192949,264.34,264.2,0.56755136]
[1737243635042,29.82192949,264.3,264.18,29.82192949]
[1737243635248,29.82192949,264.3,264.19,0.56766081]
[1737243635447,89.27005897,264.53,264.29,29.82192949]
[1737243635648,29.82192949,264.48,264.36,29.82192949]
[1737243635848,29.82192949,264.48,264.37,0.56725894]
[1737243636150,29.82192949,264.46,264.37,0.56726705]
[1737243636360,29.82192949,264.46,264.35,0.56728789]
[1737243636762,29.82192949,264.42,264.32,29.82192949]
[1737243636944,29.82192949,264.4,264.29,29.82192949]
[1737243637149,29.82192949,264.42,264.31,29.82192949]
[1737243637354,29.82192949,264.48,264.35,29.82192949]
[1737243637556,29.82192949,264.46,264.36,0.56722362]
[1737243637764,89.27005897,264.53,264.41,29.82192949]
[1737243637969,29.82192949,264.52,264.42,0.56714569]
[1737243638144,29.82192949,264.52,264.35,3.7828]
[1737243638145,29.82192949,264.5,264.39,29.82192949]
[1737243638351,29.82192949,264.48,264.4,0.5672107]
[1737243638550,29.82192949,264.5,264.39,29.82192949]
[1737243638758,29.82192949,264.5,264.4,0.56715672]
[1737243638960,3.7805,264.52,264.4,0.56715672]
[1737243639170,29.82192949,264.48,264.36,29.82192949]
[1737243639346,29.82192949,264.48,264.37,0.56719261]
[1737243639663,29.82192949,264.5,264.38,29.82192949]
[1737243639870,29.82192949,264.48,264.39,0.56717164]
[1737243640771,33.60302949,264.48,264.39,0.56717164]
[1737243640948,29.82192949,264.41,264.39,0.56717164]
[1737243641155,29.82192949,264.41,264.29,0.5674171]
[1737243641459,29.82192949,264.38,264.27,33.60592949]
[1737243641641,3.7811,264.48,264.31,29.82192949]
[1737243641848,29.82192949,264.4,264.32,0.56730958]
[1737243642244,29.82192949,264.42,264.33,29.82192949]
[1737243642470,3.7811,264.48,264.34,0.56722023]
[1737243642664,29.82192949,264.5,264.38,29.82192949]
[1737243642869,29.82192949,264.46,264.39,0.56716837]
[1737243643168,3.7806,264.51,264.37,0.567244]
[1737243643169,29.82192949,264.44,264.37,0.567244]
[1737243643344,29.82192949,264.44,264.35,0.56728125]
[1737243643545,29.82192949,264.36,264.27,0.56727798]
[1737243643754,29.82192949,264.3,264.18,29.82192949]
[1737243643970,29.82192949,264.28,264.19,0.56759093]
[1737243644152,29.82192949,264.26,264.19,0.56761784]
[1737243644364,29.82192949,264.3,264.19,0.56761784]
[1737243644974,29.82192949,264.42,264.19,0.56761784]
[1737243644975,29.82192949,264.28,264.19,0.56761784]
[1737243645154,29.82192949,264.3,264.2,29.82192949]
[1737243645355,3.782,264.41,264.19,4.35261784]
[1737243645356,29.82192949,264.35,264.24,29.82192949]
[1737243645570,29.82192949,264.35,264.25,0.56745757]
[1737243645965,29.82192949,264.35,264.26,29.82192949]
[1737243646170,29.82192949,264.35,264.27,0.56743987]
[1737243646471,29.82192949,264.41,264.3,29.82192949]
[1737243646653,29.82192949,264.43,264.32,29.82192949]
[1737243646854,33.60362949,264.43,264.33,0.56727249]
[1737243647060,29.82192949,264.41,264.33,0.56727249]
[1737243647766,29.82192949,264.41,264.24,0.063]
[1737243647767,29.82192949,264.39,264.31,0.56732816]
[1737243648069,3.7817,264.43,264.24,0.063]
[1737243648070,29.82192949,264.33,264.24,0.063]
[1737243648260,29.82192949,264.27,264.24,0.063]
[1737243648570,29.82192949,264.25,264.24,0.063]
[1737243648953,29.82192949,264.27,264.24,0.063]
[1737243649864,29.82192949,264.25,264.24,0.063]
[1737243650260,33.60592949,264.27,264.24,0.063]
[1737243650457,29.82192949,264.31,264.24,0.063]
[1737243650657,29.82192949,264.37,264.26,29.82192949]
[1737243650863,29.82192949,264.37,264.27,0.56739242]
[1737243651376,29.82192949,264.42,264.31,29.82192949]
[1737243651552,29.82192949,264.42,264.32,0.56737124]
[1737243651953,29.82192949,264.44,264.33,29.82192949]
[1737243652174,29.82192949,264.42,264.34,0.56731577]
[1737243652363,3.781,264.48,264.34,0.56731577]
[1737243652567,29.82192949,264.44,264.33,29.82192949]
[1737243652871,29.82192949,264.42,264.34,0.5673149]
[1737243653074,29.82192949,264.4,264.29,29.82192949]
[1737243653368,3.7822,264.39,264.3,0.56745358]
[1737243653757,29.82192949,264.31,264.24,0.063]
[1737243653958,29.82192949,264.29,264.24,0.063]
[1737243654257,13.2379,264.39,264.24,0.063]
[1737243654258,29.82192949,264.31,264.24,0.063]
[1737243654470,29.82192949,264.29,264.24,0.063]
[1737243654855,29.82192949,264.34,264.24,0.063]
[1737243655055,29.82192949,264.34,264.24,0.63051233]
[1737243655276,3.7831,264.33,264.24,0.63051233]
[1737243655459,29.82192949,264.3,264.24,0.063]
[1737243655659,29.82192949,264.32,264.24,0.063]
[1737243655863,29.82192949,264.3,264.24,0.063]
[1737243656171,3.7831,264.33,264.24,0.063]
[1737243656172,29.82192949,264.28,264.24,0.063]
[1737243656369,29.82192949,264.26,264.24,0.063]
[1737243656753,29.82192949,264.26,264.04,0.56777186]
[1737243656754,20.0,264.18,264.04,0.56777186]
[1737243656976,29.82192949,264.12,264.01,30.38998391]
[1737243657172,29.82192949,264.14,264.03,29.82192949]
[1737243657491,29.82192949,264.18,264.07,29.82192949]
[1737243657666,29.82192949,264.16,264.05,29.82192949]
[1737243657976,29.82192949,264.16,264.06,0.56796746]
[1737243658273,29.82192949,264.18,264.07,29.82192949]
[1737243658468,29.82192949,264.18,264.08,0.56789619]
[1737243658860,3.7851,264.19,264.09,29.82192949]
[1737243659358,23.776884,264.21,264.08,0.063]
[1737243659359,29.82192949,264.16,264.08,0.063]
[1737243659766,23.776884,264.15,264.08,0.063]
[1737243660469,29.82192949,264.18,264.08,0.063]
[1737243660667,29.82192949,264.1,264.08,0.063]
[1737243660868,23.776884,264.09,263.97,0.063]
[1737243661174,29.82192949,264.0,263.97,0.063]
[1737243661375,33.60952949,264.02,263.97,0.063]
[1737243661553,23.776884,264.01,263.97,0.063]
[1737243661764,29.82192949,263.98,263.97,0.063]
[1737243661963,11.41001663,263.98,263.97,0.063]
[1737243662781,11.41001663,263.98,263.97,0.0001]
[1737243662956,11.41001663,263.98,263.82,29.88492949]
[1737243663157,29.82192949,263.97,263.86,29.82192949]